bitfinex/quotes_BTCUSD_20240620
["timestamp","ask_amount","ask_price","bid_price","bid_amount"]
[1718860832889,0.0003118,65422.0,65421.0,1.28782103]
[1718860832890,0.0013118,65422.0,65421.0,1.28782103]
[1718860833105,0.0013118,65422.0,65421.0,1.27782103]
[1718860833402,0.0013118,65422.0,65421.0,1.28782103]
[1718860833600,0.0013118,65422.0,65421.0,1.27782103]
[1718860833865,0.0003118,65422.0,65421.0,1.26482103]
[1718860834047,0.0023118,65422.0,65421.0,1.29282103]
[1718860834497,0.0023118,65422.0,65421.0,0.98710903]
[1718860834622,0.306535,65429.0,65421.0,0.76085303]
[1718860834825,0.152837,65429.0,65428.0,0.02067991]
[1718860835026,0.00031086,65430.0,65429.0,0.02067991]
[1718860835256,0.458505,65430.0,65429.0,0.17324103]
[1718860835452,0.30567,65430.0,65429.0,0.17324103]
[1718860835654,0.152835,65430.0,65429.0,0.17324103]
[1718860835860,0.30567,65430.0,65429.0,0.17324103]
[1718860836062,0.152835,65430.0,65429.0,0.17324103]
[1718860836273,0.001,65430.0,65429.0,0.16424103]
[1718860836451,0.458505,65430.0,65429.0,0.18424103]
[1718860836927,0.152835,65430.0,65429.0,0.18424103]
[1718860837143,0.2741,65437.0,65429.0,0.011]
[1718860837267,1.17181,65430.0,65429.0,0.011]
[1718860837644,1.385045,65430.0,65429.0,0.021]
[1718860837863,1.079375,65430.0,65429.0,0.021]
[1718860838030,0.978375,65430.0,65429.0,0.011]
[1718860838230,0.87810098,65430.0,65429.0,0.012]
[1718860838431,1.029245,65430.0,65429.0,0.012]
[1718860838612,1.088645,65430.0,65429.0,0.012]
[1718860838818,1.088645,65430.0,65429.0,0.01418]
[1718860839225,2.225771,65430.0,65429.0,0.01618]
[1718860839437,2.42747325,65430.0,65429.0,0.01618]
[1718860839647,2.42747325,65430.0,65429.0,0.00518]
[1718860839845,1.59601725,65430.0,65429.0,0.00718]
[1718860840044,1.583315,65430.0,65429.0,0.00718]
[1718860840303,3.171117,65430.0,65429.0,0.00718]
[1718860840505,1.60301725,65430.0,65429.0,0.00818]
[1718860840680,1.99530509,65430.0,65429.0,0.00318]
[1718860840880,1.99530509,65430.0,65429.0,0.00418]
[1718860840881,4.31727116,65430.0,65429.0,0.00418]
[1718860841209,4.10885534,65430.0,65429.0,0.00518]
[1718860841384,3.99567134,65430.0,65429.0,0.00418]
[1718860841603,3.71627334,65430.0,65429.0,0.00418]
[1718860841794,3.70022334,65430.0,65429.0,0.00518]
[1718860842173,3.68622334,65430.0,65429.0,0.00418]
[1718860842589,3.68622334,65430.0,65398.0,0.10784308]
[1718860842590,0.764537,65399.0,65398.0,0.10784308]
[1718860842761,1.218752,65399.0,65398.0,0.10784308]
[1718860842968,1.070352,65399.0,65398.0,0.10784308]
[1718860843777,1.071352,65399.0,65398.0,0.12184308]
[1718860844748,1.060352,65399.0,65398.0,0.10784308]
[1718860845095,1.066792,65399.0,65398.0,0.10784308]
[1718860845640,1.064792,65399.0,65398.0,0.10784308]
[1718860846025,1.066792,65399.0,65398.0,0.10852299]
[1718860846232,1.068792,65399.0,65398.0,0.12852299]
[1718860846430,1.068792,65399.0,65398.0,0.38772299]
[1718860846616,0.457162,65399.0,65398.0,0.54028411]
[1718860846814,0.459162,65399.0,65398.0,0.54028411]
[1718860847022,0.760977,65399.0,65398.0,0.54028411]
[1718860847220,0.758977,65399.0,65398.0,0.54028411]
[1718860847538,0.762977,65399.0,65398.0,0.54028411]
[1718860847883,0.457162,65399.0,65398.0,0.54028411]
[1718860848085,0.455162,65399.0,65398.0,0.54328411]
[1718860848357,0.7607033,65399.0,65398.0,0.54528411]
[1718860849454,0.7587033,65399.0,65398.0,0.54228411]
[1718860849628,0.7587033,65399.0,65398.0,0.54528411]
[1718860850436,0.4528883,65399.0,65398.0,0.54528411]
[1718860851042,0.7587033,65399.0,65398.0,0.54528411]
[1718860851499,0.7587033,65399.0,65398.0,0.54328411]
[1718860851827,0.7587033,65399.0,65398.0,0.54528411]
[1718860851828,0.7597033,65399.0,65398.0,0.54528411]
[1718860852443,0.7597033,65399.0,65398.0,0.54228411]
[1718860852804,0.7597033,65399.0,65398.0,0.54628411]
[1718860852984,0.7597033,65399.0,65398.0,0.11384308]
[1718860853173,0.8649033,65399.0,65398.0,0.11384308]
[1718860853344,1.1707183,65399.0,65398.0,0.11384308]
[1718860853931,1.1697183,65399.0,65398.0,0.11184308]
[1718860854134,1.1747183,65399.0,65398.0,0.11184308]
[1718860854770,1.1747183,65399.0,65398.0,0.10784308]
[1718860854771,1.3449383,65399.0,65398.0,0.10784308]
[1718860855591,1.6557533,65399.0,65398.0,0.10784308]
[1718860856382,1.6617533,65399.0,65398.0,0.10884308]
[1718860856560,1.6617533,65399.0,65398.0,0.10784308]
[1718860856877,1.6697533,65399.0,65398.0,0.10884308]
[1718860857059,1.6647533,65399.0,65398.0,0.10884308]
[1718860857431,1.6707143,65399.0,65398.0,0.10884308]
[1718860857632,1.7707143,65399.0,65398.0,0.10884308]
[1718860858230,1.77018213,65399.0,65398.0,0.10884308]
[1718860858654,1.79318213,65399.0,65398.0,0.10884308]
[1718860864336,1.61796213,65399.0,65398.0,0.10884308]
[1718860864542,3.58282913,65399.0,65398.0,0.10884308]
[1718860864716,3.49592913,65399.0,65398.0,0.10884308]
[1718860865585,3.59524922,65399.0,65398.0,0.10884308]
[1718860865788,4.18242534,65399.0,65398.0,0.10884308]
[1718860865984,4.19711877,65399.0,65398.0,0.10884308]
[1718860866352,4.24711877,65399.0,65398.0,0.10884308]
[1718860866548,4.23311877,65399.0,65398.0,0.10784308]
[1718860866991,4.24711877,65399.0,65398.0,0.10884308]
[1718860867206,4.24711877,65399.0,65398.0,0.10784308]
[1718860867578,4.26111877,65399.0,65398.0,0.10884308]
[1718860867784,4.25411877,65399.0,65398.0,0.10884308]
[1718860868404,4.26784508,65399.0,65398.0,0.06783787]
[1718860868918,4.26784508,65399.0,65398.0,0.02983787]
[1718860869151,4.30883421,65399.0,65398.0,0.02983787]
[1718860869373,4.29483421,65399.0,65398.0,0.02983787]
[1718860869590,4.26784508,65399.0,65398.0,0.02983787]
[1718860869761,4.23984508,65399.0,65398.0,0.02883787]
[1718860869981,4.25384508,65399.0,65398.0,0.02883787]
[1718860870187,4.25384508,65399.0,65388.0,0.009471]
[1718860870188,1.376374,65389.0,65388.0,0.009471]
[1718860870321,1.881174,65389.0,65388.0,0.009471]
[1718860872147,3.74284,65389.0,65388.0,0.009471]
[1718860872389,3.85598181,65389.0,65388.0,0.009471]
[1718860872589,3.85598181,65389.0,65388.0,0.001851]
[1718860872819,3.85598181,65389.0,65388.0,0.002851]
[1718860872820,3.88398181,65389.0,65388.0,0.002851]
[1718860873140,3.66702272,65389.0,65388.0,0.001851]
[1718860873363,3.61655581,65389.0,65388.0,0.001851]
[1718860873544,3.64455581,65389.0,65388.0,0.002851]
[1718860873786,3.79711693,65389.0,65388.0,0.002851]
[1718860873990,3.76911693,65389.0,65388.0,0.001851]
[1718860874718,3.66979684,65389.0,65388.0,0.001851]
[1718860875077,3.65579684,65389.0,65388.0,0.001851]
[1718860875292,3.66979684,65389.0,65388.0,0.002851]
[1718860875607,3.66979684,65389.0,65388.0,0.001851]
[1718860875608,2.79757472,65389.0,65388.0,0.001851]
[1718860875805,1.496254,65389.0,65388.0,0.001851]
[1718860876018,1.510254,65389.0,65388.0,0.002851]
[1718860876218,1.524254,65389.0,65388.0,0.002851]
[1718860876658,1.52874863,65389.0,65388.0,0.002851]
[1718860876823,1.50074863,65389.0,65388.0,0.001851]
[1718860877032,1.50074863,65389.0,65388.0,0.002851]
[1718860877033,1.51074863,65389.0,65388.0,0.002851]
[1718860877394,1.65596863,65389.0,65388.0,0.002851]
[1718860877537,1.66496863,65389.0,65388.0,0.002851]
[1718860878144,1.66496863,65389.0,65385.0,0.009471]
[1718860878145,1.376437,65386.0,65385.0,0.009471]
[1718860878350,1.376437,65386.0,65382.0,0.000946]
[1718860878351,0.45857782,65383.0,65382.0,0.000946]
[1718860878527,1.07035582,65383.0,65382.0,0.000946]
[1718860878712,1.47624482,65383.0,65382.0,0.000946]
[1718860878917,2.27121982,65383.0,65382.0,0.000946]
[1718860879298,2.20991982,65383.0,65382.0,0.000946]
[1718860879430,2.17927882,65383.0,65382.0,0.000946]
[1718860879628,2.12578482,65383.0,65382.0,0.000946]
[1718860879852,2.12778482,65383.0,65382.0,0.000946]
[1718860880255,2.58623494,65383.0,65382.0,0.000946]
[1718860880432,2.76217028,65383.0,65382.0,0.000946]
[1718860880634,2.77217028,65383.0,65382.0,0.001946]
[1718860880859,2.77017028,65383.0,65382.0,0.000946]
[1718860881439,2.78117028,65383.0,65382.0,0.001946]
[1718860881971,2.791585,65383.0,65382.0,0.001946]
[1718860882190,2.782585,65383.0,65382.0,0.001946]
[1718860882395,2.79220514,65383.0,65382.0,0.001946]
[1718860883367,2.81610514,65383.0,65382.0,0.001946]
[1718860883684,2.51021605,65383.0,65382.0,0.001946]
[1718860884116,2.4975008,65383.0,65382.0,0.001946]
[1718860884375,1.86067594,65383.0,65382.0,0.001946]
[1718860884812,3.12042582,65383.0,65382.0,0.001946]
[1718860884940,1.59955782,65383.0,65382.0,0.001946]
[1718860885140,1.23082582,65383.0,65382.0,0.20972772]
[1718860885365,1.21811068,65383.0,65382.0,0.20972772]
[1718860885766,1.21811068,65383.0,65382.0,0.21040763]
[1718860885973,1.21811068,65383.0,65382.0,0.13412591]
[1718860886473,1.21811068,65383.0,65382.0,0.23040763]
[1718860886474,0.59633268,65383.0,65382.0,0.23040763]
[1718860886648,0.57833268,65383.0,65382.0,0.38460763]
[1718860886853,0.47833268,65383.0,65382.0,0.38460763]
[1718860887035,0.78622168,65383.0,65382.0,0.38460763]
[1718860887242,0.78322168,65383.0,65382.0,0.38460763]
[1718860887649,0.78322168,65383.0,65382.0,0.30832591]
[1718860887886,0.78122168,65383.0,65382.0,0.30832591]
[1718860888289,0.78094728,65383.0,65382.0,0.30832591]
[1718860888726,0.78394728,65383.0,65382.0,0.30832591]
[1718860889090,0.00972,65383.0,65382.0,0.46088703]
[1718860889308,0.01072,65383.0,65382.0,0.62583403]
[1718860889505,0.01072,65383.0,65382.0,0.93172803]
[1718860889727,0.01072,65383.0,65382.0,1.23762203]
[1718860889890,0.00772,65383.0,65382.0,1.23762203]
[1718860890087,0.00872,65383.0,65382.0,1.24062203]
[1718860890372,0.00872,65383.0,65382.0,1.23062203]
[1718860890571,0.00872,65383.0,65382.0,1.22562203]
[1718860890572,0.00672,65383.0,65382.0,1.22562203]
[1718860891013,0.152928,65390.0,65389.0,0.31267991]
[1718860891246,0.152928,65390.0,65389.0,0.46524103]
[1718860892895,0.153928,65390.0,65389.0,0.46724103]
[1718860893091,0.001,65390.0,65389.0,0.46724103]
[1718860893298,0.001,65390.0,65389.0,0.62017103]
[1718860893541,0.1,65397.0,65396.0,0.30597991]
[1718860893740,0.152911,65398.0,65397.0,0.02067991]
[1718860893917,0.152911,65398.0,65397.0,0.33150103]
[1718860894127,0.153767,65399.0,65398.0,0.30073991]
[1718860894330,0.153767,65399.0,65398.0,0.45330103]
[1718860897012,0.459582,65399.0,65398.0,0.45330103]
[1718860897598,0.460582,65399.0,65398.0,0.45930103]
[1718860898172,0.766397,65399.0,65398.0,0.45930103]
[1718860899487,1.072212,65399.0,65398.0,0.006]
[1718860899918,1.072212,65399.0,65398.0,0.008]
[1718860899919,1.073212,65399.0,65398.0,0.008]
[1718860900318,1.072212,65399.0,65398.0,0.006]
[1718860900468,0.764595,65394.0,65393.0,0.1548]
[1718860901792,0.764595,65394.0,65393.0,0.17073991]
[1718860901969,0.764595,65394.0,65393.0,0.1548]
[1718860902168,0.764595,65394.0,65393.0,0.17073991]
[1718860902509,0.764595,65394.0,65393.0,0.44710103]
[1718860902510,0.458757,65394.0,65393.0,0.44710103]
[1718860904030,0.458757,65394.0,65393.0,0.45110103]
[1718860905077,0.764595,65394.0,65393.0,0.45110103]
[1718860908428,0.76404575,65394.0,65393.0,0.45110103]
[1718860909151,0.45820775,65394.0,65393.0,0.45110103]
[1718860913214,0.306677,65399.0,65398.0,0.30203991]
[1718860913215,0.459584,65399.0,65398.0,0.30203991]
[1718860913554,0.459584,65399.0,65398.0,0.45460103]
[1718860915613,0.463584,65399.0,65398.0,0.45460103]
[1718860916267,0.467584,65399.0,65398.0,0.45460103]
[1718860916710,0.773401,65399.0,65398.0,0.45460103]
[1718860917105,0.769401,65399.0,65398.0,0.45460103]
[1718860917313,0.769401,65399.0,65398.0,0.45660103]
[1718860917314,0.770401,65399.0,65398.0,0.45660103]
[1718860917509,0.766401,65399.0,65398.0,0.45660103]
[1718860918509,0.76612611,65399.0,65398.0,0.45660103]
[1718860918926,0.76712611,65399.0,65398.0,0.44634103]
[1718860919545,0.76712611,65399.0,65398.0,0.31714103]
[1718860919733,0.76712611,65399.0,65398.0,0.007]
[1718860919734,1.07294311,65399.0,65398.0,0.007]
[1718860920590,1.07194311,65399.0,65398.0,0.005]
[1718860920716,0.764595,65394.0,65393.0,0.01688591]
[1718860921129,0.764595,65394.0,65393.0,0.00162591]
[1718860921532,0.764595,65394.0,65393.0,0.000946]
[1718860921731,1.070433,65394.0,65393.0,0.000946]
[1718860923332,1.070433,65394.0,65393.0,0.01888591]
[1718860923537,1.070433,65394.0,65393.0,0.01988591]
[1718860924005,1.070433,65394.0,65393.0,0.002946]
[1718860924417,1.070433,65394.0,65393.0,0.004946]
[1718860925027,1.070433,65394.0,65393.0,0.002946]
[1718860925232,1.204833,65394.0,65393.0,0.002946]
[1718860925839,1.204833,65394.0,65393.0,0.000946]
[1718860926243,1.206833,65394.0,65393.0,0.000946]
[1718860927226,1.208833,65394.0,65393.0,0.000946]
[1718860928291,1.915171,65394.0,65393.0,0.000946]
[1718860928437,1.93006061,65394.0,65393.0,0.000946]
[1718860929862,1.915171,65394.0,65393.0,0.000946]
[1718860930092,1.92788303,65394.0,65393.0,0.000946]
[1718860931384,1.77948303,65394.0,65393.0,0.000946]
[1718860931587,1.826171,65394.0,65393.0,0.000946]
[1718860931782,1.83888303,65394.0,65393.0,0.000946]
[1718860937981,1.83888262,65394.0,65393.0,0.000946]
[1718860940641,1.49298262,65394.0,65393.0,0.000946]
[1718860940846,1.539671,65394.0,65393.0,0.000946]
[1718860942226,1.174433,65394.0,65393.0,0.000946]
[1718860942434,0.88744866,65394.0,65393.0,0.29818591]
[1718860942719,0.78744866,65394.0,65393.0,0.29818591]
[1718860943447,0.764595,65394.0,65393.0,0.29818591]
[1718860943648,0.766595,65394.0,65393.0,0.29818591]
[1718860943877,0.768595,65394.0,65393.0,0.29818591]
[1718860944295,0.76670962,65394.0,65393.0,0.30318591]
[1718860944493,0.76470962,65394.0,65393.0,0.30318591]
[1718860944652,0.76570962,65394.0,65393.0,0.30518591]
[1718860946510,0.45987162,65394.0,65393.0,0.30518591]
[1718860946711,0.004,65394.0,65393.0,0.45774703]
[1718860948192,0.00247179,65394.0,65393.0,0.45774703]
[1718860950080,0.0018301,65394.0,65393.0,0.45774703]
[1718860951229,0.1547491,65394.0,65393.0,0.45774703]
[1718860958233,0.15393518,65394.0,65393.0,0.45774703]
[1718860958427,0.45977318,65394.0,65393.0,0.45774703]
[1718860959962,0.15393518,65394.0,65393.0,0.45774703]
[1718860960483,0.15393518,65394.0,65393.0,0.68006803]
[1718860960484,0.00101618,65394.0,65393.0,0.68006803]
[1718860960704,0.00101618,65394.0,65393.0,0.98591103]
[1718860960892,0.00101618,65394.0,65393.0,0.68006803]
[1718860961836,0.00101618,65394.0,65393.0,0.62066803]
[1718860963960,0.00101618,65394.0,65393.0,0.61066803]
[1718860970456,0.00101618,65394.0,65393.0,0.45774703]
[1718860970754,0.00101618,65394.0,65393.0,0.17644703]
[1718860970755,0.45977318,65394.0,65393.0,0.17644703]
[1718860971663,0.76561118,65394.0,65393.0,0.17644703]
[1718860971936,0.91701118,65394.0,65393.0,0.16050712]
[1718860972389,0.91701118,65394.0,65393.0,0.17644703]
[1718860973054,0.91701118,65394.0,65393.0,0.16050712]
[1718860973294,0.91701118,65394.0,65393.0,0.17644703]
[1718860973506,0.76561118,65394.0,65393.0,0.17644703]
[1718860973964,0.76561118,65394.0,65393.0,0.17444703]
[1718860974215,0.764595,65394.0,65393.0,0.16944703]
[1718860974419,0.766595,65394.0,65393.0,0.17644703]
[1718860977589,1.352633,65394.0,65393.0,0.007946]
[1718860981967,1.201233,65394.0,65393.0,0.007946]
[1718860982244,1.072433,65394.0,65393.0,0.007946]
[1718860982457,1.072433,65394.0,65393.0,0.00862591]
[1718860982658,1.072433,65394.0,65393.0,0.02388591]
[1718860982824,1.072433,65394.0,65393.0,0.007946]
[1718860983051,1.072433,65394.0,65393.0,0.02388591]
[1718860983774,1.072433,65394.0,65393.0,0.007946]
[1718860983953,0.766595,65394.0,65393.0,0.17644703]
[1718860984199,0.766595,65394.0,65393.0,0.16050712]
[1718860984396,0.766595,65394.0,65393.0,0.16118703]
[1718860984599,0.766595,65394.0,65393.0,0.17644703]
[1718860985361,0.766595,65394.0,65393.0,0.16118703]
[1718860985602,0.766595,65394.0,65393.0,0.16050712]
[1718860985786,0.766595,65394.0,65393.0,0.16118703]
[1718860985998,1.258533,65394.0,65393.0,0.007946]
[1718860986371,1.27766693,65394.0,65393.0,0.007946]
[1718860986773,1.28240693,65394.0,65393.0,0.007946]
[1718860988616,1.27766693,65394.0,65393.0,0.007946]
[1718860988887,1.28240693,65394.0,65393.0,0.007946]
[1718860989325,1.27766693,65394.0,65393.0,0.007946]
[1718860990113,1.27766693,65394.0,65393.0,0.000326]
[1718860990319,1.21826693,65394.0,65393.0,0.000326]
[1718860990526,1.21826693,65394.0,65393.0,0.01626591]
[1718860990527,0.78572893,65394.0,65393.0,0.01626591]
[1718860990833,0.766595,65394.0,65393.0,0.09254763]
[1718860991940,0.766595,65394.0,65393.0,0.01626591]
[1718860992556,0.766595,65394.0,65393.0,0.00100591]
[1718860992771,0.766595,65394.0,65393.0,0.01626591]
[1718860992992,0.766595,65394.0,65393.0,0.00100591]
[1718860993218,0.766595,65394.0,65393.0,0.01626591]
[1718860993395,0.766595,65394.0,65393.0,0.00100591]
[1718860993569,0.766595,65394.0,65393.0,0.01626591]
[1718861000489,0.79786011,65394.0,65393.0,0.01626591]
[1718861001893,0.002,65394.0,65393.0,0.44802703]
[1718861002095,0.002,65394.0,65393.0,0.90679103]
[1718861002329,0.002,65394.0,65393.0,0.91679103]
[1718861003036,0.002,65394.0,65393.0,1.52847703]
[1718861003364,0.002,65394.0,65393.0,1.73987703]
[1718861003563,0.00058511,65399.0,65393.0,1.73987703]
[1718861003564,0.00058511,65399.0,65398.0,1.54060591]
[1718861003770,0.00058511,65399.0,65398.0,1.75256703]
[1718861004349,0.00058511,65399.0,65398.0,1.65056703]
[1718861004556,0.00058511,65399.0,65398.0,1.75256703]
[1718861005162,0.00058511,65399.0,65398.0,1.96686703]
[1718861005163,0.00158511,65399.0,65398.0,1.96686703]
[1718861006200,0.00258511,65399.0,65398.0,1.97186703]
[1718861006955,0.305704,65423.0,65422.0,0.00593991]
[1718861007159,0.305704,65423.0,65422.0,0.16850103]
[1718861007160,0.152851,65423.0,65422.0,0.16850103]
[1718861007600,0.458553,65423.0,65422.0,0.16850103]
[1718861007916,0.458553,65423.0,65422.0,0.17222103]
[1718861008972,0.462553,65423.0,65422.0,0.17222103]
[1718861009952,0.16648816,65423.0,65422.0,0.17222103]
[1718861010348,0.47219016,65423.0,65422.0,0.17222103]
[1718861010744,0.46819016,65423.0,65422.0,0.17222103]
[1718861010941,0.46519016,65423.0,65422.0,0.17222103]
[1718861011156,0.46519016,65423.0,65422.0,0.17522103]
[1718861011357,0.46519016,65423.0,65422.0,0.17822103]
[1718861011557,0.46519016,65423.0,65422.0,0.17522103]
[1718861011917,0.46519016,65423.0,65422.0,0.17222103]
[1718861012096,0.46519016,65423.0,65422.0,0.17622103]
[1718861013258,0.00086,65423.0,65422.0,0.17622103]
[1718861013375,0.459413,65423.0,65422.0,0.16428112]
[1718861013611,0.765115,65423.0,65422.0,0.18022103]
[1718861013811,0.459413,65423.0,65422.0,0.18022103]
[1718861014021,0.00086,65423.0,65422.0,0.33307403]
[1718861014225,0.00086,65423.0,65422.0,0.62617403]
[1718861014673,0.00086,65423.0,65422.0,0.63617403]
[1718861015001,0.00086,65423.0,65422.0,0.47332103]
[1718861015280,0.00086,65423.0,65422.0,0.46960103]
[1718861016285,0.00086,65423.0,65422.0,0.93816103]
[1718861018242,0.00086,65423.0,65422.0,0.99756103]
[1718861019795,0.00086,65423.0,65422.0,0.93816103]
[1718861021624,0.00086,65423.0,65422.0,0.92816103]
[1718861021770,0.00086,65423.0,65422.0,0.62245403]
[1718861021977,0.00086,65423.0,65422.0,0.63245403]
[1718861022631,0.00086,65423.0,65422.0,0.93816103]
[1718861029604,0.00086,65423.0,65422.0,0.93416103]
[1718861029998,0.00186,65423.0,65422.0,0.94416103]
[1718861030625,0.00186,65423.0,65422.0,0.94016103]
[1718861031138,0.00286,65423.0,65422.0,0.95116103]
[1718861031702,0.00286,65423.0,65422.0,1.01056103]
[1718861032791,0.00286,65423.0,65422.0,0.95116103]
[1718861032994,0.00286,65423.0,65422.0,0.63545403]
[1718861033201,0.00286,65423.0,65422.0,0.95116103]
[1718861035223,0.00286,65423.0,65422.0,1.25686803]
[1718861036622,0.00286,65423.0,65422.0,0.64806103]
[1718861037993,0.155711,65423.0,65422.0,0.18950103]
[1718861038192,0.155711,65423.0,65422.0,0.17424103]
[1718861038193,0.755813,65423.0,65422.0,0.17424103]
[1718861038475,0.755813,65423.0,65422.0,0.18950103]
[1718861039257,1.061515,65423.0,65422.0,0.18950103]
[1718861039429,1.060515,65423.0,65422.0,0.17950103]
[1718861040049,1.060515,65423.0,65422.0,0.16850103]
[1718861040050,1.059515,65423.0,65422.0,0.16850103]
[1718861040453,1.059515,65423.0,65422.0,0.17150103]
[1718861040654,1.059515,65423.0,65422.0,0.15556112]
[1718861041056,1.059515,65423.0,65422.0,0.15928112]
[1718861041284,1.059515,65423.0,65422.0,0.00672]
[1718861041285,1.369957,65423.0,65422.0,0.00672]
[1718861041637,1.469957,65423.0,65422.0,0.00972]
[1718861041843,1.524617,65423.0,65422.0,0.00972]
[1718861042195,1.54213652,65423.0,65422.0,0.00972]
[1718861042415,1.54687652,65423.0,65422.0,0.00672]
[1718861042628,1.54613652,65423.0,65422.0,0.00672]
[1718861043015,1.54613652,65423.0,65422.0,0.00372]
[1718861043429,1.54132269,65423.0,65422.0,0.00572]
[1718861043691,1.524617,65423.0,65422.0,0.00572]
[1718861043893,1.53732267,65423.0,65422.0,0.00372]
[1718861044298,1.534357,65423.0,65422.0,0.00372]
[1718861045468,1.539357,65423.0,65422.0,0.00372]
[1718861045857,1.539357,65423.0,65422.0,0.004666]
[1718861047121,1.534617,65423.0,65422.0,0.004666]
[1718861047742,1.539357,65423.0,65422.0,0.004666]
[1718861049254,1.55827174,65423.0,65422.0,0.004666]
[1718861049385,1.32853174,65423.0,65422.0,0.004666]
[1718861049575,1.38793174,65423.0,65422.0,0.004666]
[1718861050200,1.18973174,65423.0,65422.0,0.004666]
[1718861050406,1.24913174,65423.0,65422.0,0.004666]
[1718861050606,1.25913174,65423.0,65422.0,0.004666]
[1718861051210,1.25413174,65423.0,65422.0,0.004666]
[1718861051864,1.25813174,65423.0,65422.0,0.004666]
[1718861052479,1.25313174,65423.0,65422.0,0.004666]
[1718861052996,1.25713174,65423.0,65422.0,0.004666]
[1718861053199,1.25313174,65423.0,65422.0,0.004666]
[1718861053716,1.25713174,65423.0,65422.0,0.004666]
[1718861056275,1.54317174,65423.0,65422.0,0.004666]
[1718861056421,1.65769367,65423.0,65422.0,0.004666]
[1718861056621,1.54317174,65423.0,65422.0,0.004666]
[1718861057233,1.64968695,65423.0,65422.0,0.004666]
[1718861057449,1.53917174,65423.0,65422.0,0.004666]
[1718861057680,1.54317174,65423.0,65422.0,0.004666]
[1718861057880,1.55587746,65423.0,65422.0,0.004666]
[1718861058288,1.6703887,65423.0,65422.0,0.004666]
[1718861058786,1.67038585,65423.0,65422.0,0.004666]
[1718861064187,1.60624585,65423.0,65422.0,0.004666]
[1718861064405,1.5511374,65423.0,65422.0,0.004666]
[1718861064626,1.5511374,65423.0,65422.0,0.02060591]
[1718861064627,1.2104374,65423.0,65422.0,0.02060591]
[1718861064847,1.2104374,65423.0,65422.0,0.18550591]
[1718861065041,1.25713174,65423.0,65422.0,0.18550591]
[1718861066217,1.25313174,65423.0,65422.0,0.02060591]
[1718861066428,1.25313174,65423.0,65422.0,0.004666]
[1718861066628,1.25713174,65423.0,65422.0,0.00534591]
[1718861066828,1.25313174,65423.0,65422.0,0.00534591]
[1718861067181,1.37573174,65423.0,65422.0,0.004666]
[1718861067327,1.25113174,65423.0,65422.0,0.02060591]
[1718861067736,1.25413174,65423.0,65422.0,0.02060591]
[1718861071659,1.19473174,65423.0,65422.0,0.02060591]
[1718861071862,1.25413174,65423.0,65422.0,0.02060591]
[1718861072438,0.94842974,65423.0,65422.0,0.02060591]
[1718861075190,0.58332774,65423.0,65422.0,0.17316703]
[1718861075386,0.48332774,65423.0,65422.0,0.44906703]
[1718861075586,0.00586,65423.0,65422.0,0.60192003]
[1718861076345,0.00386,65423.0,65422.0,0.60192003]
[1718861076524,0.00086,65423.0,65422.0,0.60492003]
[1718861076958,0.00186,65423.0,65422.0,0.61692003]
[1718861077158,0.00086,65423.0,65422.0,0.60192003]
[1718861077370,0.00186,65423.0,65422.0,0.61720003]
[1718861077569,0.00286,65423.0,65422.0,0.62920003]
[1718861077969,0.00186,65423.0,65422.0,0.62020003]
[1718861078289,0.00186,65423.0,65422.0,0.89996712]
[1718861078494,0.00186,65423.0,65422.0,0.92590703]
[1718861079433,0.00286,65423.0,65422.0,0.90896712]
[1718861079579,0.00286,65423.0,65422.0,1.21467412]
[1718861079784,0.00286,65423.0,65422.0,1.24061403]
[1718861081943,0.00286,65423.0,65422.0,1.21467412]
[1718861082493,0.00286,65423.0,65422.0,1.24061403]
[1718861084212,0.00286,65423.0,65422.0,1.21467412]
[1718861084330,0.00286,65423.0,65422.0,1.24061403]
[1718861085770,0.00286,65423.0,65422.0,0.65900703]
[1718861085970,0.00286,65423.0,65422.0,1.24721403]
[1718861086500,0.00286,65423.0,65422.0,0.94150703]
[1718861086715,0.00286,65423.0,65422.0,1.30661403]
[1718861089591,0.00286,65423.0,65422.0,1.24721403]
[1718861090855,0.00286,65423.0,65422.0,1.23721403]
[1718861092043,0.00286,65423.0,65422.0,1.24721403]
[1718861094705,0.00286,65423.0,65422.0,0.94150703]
[1718861102185,0.00286,65423.0,65422.0,1.24721403]
[1718861102389,0.00286,65423.0,65422.0,0.94150703]
[1718861106898,0.00286,65423.0,65422.0,0.93150703]
[1718861109158,0.00286,65423.0,65422.0,0.19044703]
[1718861109159,0.155711,65423.0,65422.0,0.19044703]
[1718861109379,0.00286,65423.0,65422.0,0.19044703]
[1718861111149,0.155711,65423.0,65422.0,0.19044703]
[1718861111671,0.00286,65423.0,65422.0,0.19044703]
[1718861112678,0.00286,65423.0,65422.0,0.20416703]
[1718861112836,0.00286,65423.0,65422.0,0.19416703]
[1718861113850,0.00286,65423.0,65422.0,1.01332703]
[1718861114057,0.00286,65423.0,65422.0,1.31903403]
[1718861114600,0.00286,65423.0,65422.0,1.31531403]
[1718861118534,0.00258574,65423.0,65422.0,1.31531403]
[1718861119962,0.00258574,65423.0,65422.0,1.77302103]
[1718861120190,0.00258574,65423.0,65422.0,1.24691403]
[1718861120403,0.00258574,65423.0,65422.0,1.30631403]
[1718861121040,0.00158574,65423.0,65422.0,1.29431403]
[1718861121236,0.00258574,65423.0,65422.0,1.30631403]
[1718861121777,0.00158574,65423.0,65422.0,0.64000703]
[1718861122208,0.00258574,65423.0,65422.0,0.65400703]
[1718861122655,0.00258574,65423.0,65422.0,0.66400703]
[1718861123569,0.00258574,65423.0,65422.0,0.74028875]
[1718861123786,0.00258574,65423.0,65422.0,1.64030275]
[1718861124572,0.439416,65438.0,65437.0,0.00067991]
[1718861124773,0.745048,65438.0,65437.0,0.15324103]
[1718861124972,0.745048,65438.0,65437.0,0.15912103]
[1718861125172,1.05068,65438.0,65437.0,0.15844112]
[1718861125390,1.356312,65438.0,65437.0,0.00588]
[1718861125574,1.361052,65438.0,65437.0,0.00588]
[1718861125784,1.361052,65438.0,65437.0,0.00888]
[1718861125978,1.361052,65438.0,65437.0,0.01088]
[1718861125979,1.356312,65438.0,65437.0,0.01088]
[1718861126176,1.415712,65438.0,65437.0,0.01088]
[1718861127253,1.415712,65438.0,65437.0,0.00888]
[1718861127606,1.417712,65438.0,65437.0,0.00588]
[1718861128137,1.420712,65438.0,65437.0,0.00588]
[1718861132996,1.425452,65438.0,65437.0,0.00588]
[1718861133379,1.557486,65438.0,65437.0,0.00588]